fUSD/lending_fUSD_20251204
["ID","MTS","AMOUNT","RATE_DAILY","PERIOD"]
[396215030,1764823841299,-500.0,0.00016289,2]
[396215031,1764823841308,-250.0,0.00016289,2]
[396215032,1764823841317,-1000.0,0.00016289,2]
[396215033,1764823841326,-500.0,0.00016289,2]
[396215034,1764823841336,-250.0,0.00016289,2]
[396215035,1764823841345,-500.0,0.00016289,2]
[396215036,1764823841355,-500.0,0.00016289,2]
[396215037,1764823841364,-1000.0,0.00016289,2]
[396215038,1764823841374,-250.0,0.00016289,2]
[396215039,1764823841383,-500.0,0.00016289,2]
[396215040,1764823841392,-500.0,0.00016289,2]
[396215041,1764823841400,-1000.0,0.00016289,2]
[396215042,1764823841409,-251.91646431,0.00016289,2]
[396215043,1764823841419,-500.0,0.00016289,2]
[396215044,1764823841428,-500.0,0.00016289,2]
[396215045,1764823841437,-1000.0,0.00016289,2]
[396215046,1764823841446,-500.0,0.00016289,2]
[396215047,1764823841455,-1000.0,0.00016289,2]
[396215048,1764823841464,-500.0,0.00016289,2]
[396215049,1764823841473,-500.0,0.00016289,2]
[396215050,1764823841484,-500.0,0.00016289,2]
[396215051,1764823841493,-500.0,0.00016289,2]
[396215052,1764823841502,-500.0,0.00016289,2]
[396215053,1764823841511,-500.0,0.00016289,2]
[396215054,1764823841520,-500.0,0.00016289,2]
[396215055,1764823841529,-295.13682797,0.00016289,2]
[396215056,1764823841538,-500.0,0.00016289,2]
[396215057,1764823841547,-220.0,0.00016289,2]
[396215058,1764823841556,-500.0,0.00016289,2]
[396215059,1764823841565,-220.0,0.00016289,2]
[396215060,1764823841575,-500.0,0.00016289,2]
[396215061,1764823841584,-510.01989463,0.00016289,2]
[396215062,1764823841592,-230.49226524,0.00016289,2]
[396215063,1764823841602,-500.0,0.00016289,2]
[396215064,1764823841611,-500.0,0.00016289,2]
[396215065,1764823841620,-250.0,0.00016289,2]
[396215066,1764823841629,-151.0,0.00016289,2]
[396215067,1764823841638,-500.0,0.00016289,2]
[396215068,1764823841647,-250.0,0.00016289,2]
[396215069,1764823841656,-500.0,0.00016289,2]
[396215070,1764823841665,-250.0,0.00016289,2]
[396215071,1764823841674,-4000.0,0.00016289,2]
[396215072,1764823841683,-500.0,0.00016289,2]
[396215073,1764823841692,-250.0,0.00016289,2]
[396215074,1764823841702,-4000.0,0.00016289,2]
[396215075,1764823841711,-500.0,0.00016289,2]
[396215076,1764823841721,-250.0,0.00016289,2]
[396215077,1764823841730,-4000.0,0.00016289,2]
[396215078,1764823841739,-500.0,0.00016289,2]
[396215079,1764823841748,-1000.0,0.00016289,2]
[396215080,1764823841757,-250.0,0.00016289,2]
[396215081,1764823841766,-4000.0,0.00016289,2]
[396215082,1764823841775,-1000.0,0.00016289,2]
[396215083,1764823841784,-500.0,0.00016289,2]
[396215084,1764823841793,-319.4682898,0.00016289,2]
[396215085,1764823841802,-4000.0,0.00016289,2]
[396215086,1764823841812,-500.0,0.00016289,2]
[396215087,1764823841821,-1000.0,0.00016289,2]
[396215088,1764823841830,-500.0,0.00016289,2]
[396215089,1764823841839,-4000.0,0.00016289,2]
[396215090,1764823841849,-500.0,0.00016289,2]
[396215091,1764823841858,-1000.0,0.00016289,2]
[396215092,1764823841867,-500.0,0.00016289,2]
[396215093,1764823841876,-4000.0,0.00016289,2]
[396215094,1764823841885,-1000.0,0.00016289,2]
[396215095,1764823841894,-500.0,0.00016289,2]
[396215096,1764823841903,-151.0,0.00016289,2]
[396215097,1764823841913,-1000.0,0.00016289,2]
[396215098,1764823841922,-500.0,0.00016289,2]
[396215099,1764823841931,-4000.0,0.00016289,2]
[396215100,1764823841940,-1000.0,0.00016289,2]
[396215101,1764823841949,-500.0,0.00016289,2]
[396215102,1764823841958,-4000.0,0.00016289,2]
[396215103,1764823841967,-1000.0,0.00016289,2]
[396215104,1764823841976,-500.0,0.00016289,2]
[396215105,1764823841985,-4000.0,0.00016289,2]
[396215106,1764823841994,-500.0,0.00016289,2]
[396215107,1764823842004,-1000.0,0.00016289,2]
[396215108,1764823842013,-500.0,0.00016289,2]
[396215109,1764823842022,-500.0,0.00016289,2]
[396215110,1764823842031,-4068.27367881,0.00016289,2]
[396215111,1764823842040,-1000.0,0.00016289,2]
[396215112,1764823842049,-1000.0,0.00016289,2]
[396215113,1764823842059,-500.0,0.00016289,2]
[396215114,1764823842069,-500.0,0.00016289,2]
[396215115,1764823842082,-1000.0,0.00016289,2]
[396215116,1764823842091,-1000.0,0.00016289,2]
[396215117,1764823842100,-500.0,0.00016289,2]
[396215118,1764823842110,-500.0,0.00016289,2]
[396215119,1764823842118,-1000.0,0.00016289,2]
[396215120,1764823842127,-1006.10006845,0.00016289,2]
[396215121,1764823842137,-500.0,0.00016289,2]
[396215122,1764823842146,-500.0,0.00016289,2]
[396215123,1764823842157,-1000.0,0.00016289,2]
[396215124,1764823842166,-500.0,0.00016289,2]
[396215125,1764823842175,-500.0,0.00016289,2]
[396215126,1764823842184,-1000.0,0.00016289,2]
[396215127,1764823842194,-500.0,0.00016289,2]
[396215128,1764823842203,-397.54712625,0.00016289,2]
[396215129,1764823842212,-500.0,0.00016289,2]
[396215130,1764823842222,-500.0,0.00016289,2]
[396215131,1764823842231,-500.0,0.00016289,2]
[396215132,1764823842240,-508.75667085,0.00016289,2]
[396215133,1764823842249,-620.0,0.00016289,2]
[396215134,1764823842259,-1229.22194654,0.00016298,5]
[396215135,1764823842268,-1050.586,0.00016298,2]
[396215136,1764823842278,-500.0,0.00016298,2]
[396215137,1764823842286,-500.0,0.00016298,2]
[396215138,1764823842295,-510.4847934,0.00016298,2]
[396215139,1764823842304,-198.96894634,0.00016298,2]
[396215140,1764823842314,-1000.0,0.00016299,2]
[396215141,1764823842323,-3105.2623555,0.00016355,2]
[396215142,1764823842333,-508.13327839,0.00016398,2]
[396215143,1764823842342,-599.71559289,0.00016398,2]
[396215144,1764823842351,-500.0,0.00016398,2]
[396215145,1764823842360,-500.0,0.00016398,2]
[396215146,1764823842369,-339.06,0.00016398,2]
[396215147,1764823842379,-457.5468066,0.00016426,2]
[396215148,1764823842388,-578.94802614,0.00016426,2]
[396215149,1764823842397,-150.0,0.00016426,2]
[396215150,1764823842407,-3105.2623555,0.00016433,2]
[396215151,1764823842416,-15969.67,0.00016438,2]
[396215152,1764823842425,-3105.2623555,0.00016511,2]
[396215153,1764823842435,-152.09910447,0.00016539,2]
[396215154,1764823842444,-150.0,0.00016563,2]
[396215155,1764823842453,-1250.64,0.00016563,2]
[396215156,1764823842462,-201.38,0.00016564,2]
[396215157,1764823842471,-3105.2623555,0.00016588,2]
[396215158,1764823842480,-1013.0,0.00016597,2]
[396215159,1764823842489,-3105.2623555,0.00016666,2]
[396215160,1764823842498,-201.44591919,0.000167,2]
[396215161,1764823842509,-10058.0,0.00016733,2]
[396215162,1764823842519,-3105.2623555,0.00016744,2]
[396215163,1764823842528,-3105.2623555,0.00016822,2]
[396215164,1764823842538,-151.0,0.00016828,2]
[396215165,1764823842547,-1950.0,0.00016828,2]
[396215166,1764823842556,-1250.64,0.00016837,2]
[396215167,1764823842566,-595.37131296,0.00016837,2]
[396215168,1764823842576,-151.0,0.00016837,2]
[396215169,1764823842585,-335.66906054,0.00016837,2]
[396215170,1764823842595,-151.0,0.00016837,2]
[396215171,1764823842604,-2105.0,0.00016858,2]
[396215172,1764823842614,-195.0,0.00016862,2]
[396215173,1764823842623,-388.63637846,0.00016862,2]
[396215174,1764823842632,-562.71132894,0.00016867,2]
[396215175,1764823842642,-292.9708623,0.000169,2]
[396215176,1764823842651,-3105.2623555,0.000169,2]
[396215177,1764823842660,-10000.0,0.000169,2]
[396215178,1764823842669,-180.97491931,0.000169,2]
[396215179,1764823842679,-206.242111,0.000169,2]
[396215180,1764823842688,-203.49110058,0.000169,2]
[396215181,1764823842697,-408.75646624,0.000169,2]
[396215182,1764823842706,-152.09910447,0.000169,2]
[396215183,1764823842715,-628.999041,0.00016912,2]
[396215184,1764823842725,-912.317628,0.00016913,2]
[396215185,1764823842734,-590.986574,0.00016915,2]
[396215186,1764823842744,-619.299951,0.00016916,2]
[396215187,1764823842753,-928.949936,0.00016916,2]
[396215188,1764823842763,-151.0,0.00016917,2]
[396215189,1764823842772,-928.94994,0.00016917,2]
[396215190,1764823842780,-928.950101,0.00016917,2]
[396215191,1764823842790,-929.236527,0.00016918,2]
[396215192,1764823842799,-928.961641,0.00016918,2]
[396215193,1764823842808,-972.466851,0.00016918,2]
[396215194,1764823842817,-150.0,0.00016918,2]
[396215195,1764823842827,-185.56045387,0.00016918,2]
[396215196,1764823842836,-500.0,0.00016918,2]
[396215197,1764823842846,-150.0,0.00016918,2]
[396215198,1764823842856,-717.646748,0.00016918,2]
[396215199,1764823842865,-709.128822,0.00016918,2]
[396215200,1764823842874,-500.0,0.00016919,2]
[396215201,1764823842884,-500.0,0.00016919,2]
[396215202,1764823842893,-150.0,0.00016919,2]
[396215203,1764823842902,-891.0,0.00016919,2]
[396215204,1764823842912,-150.0,0.00016919,2]
[396215205,1764823842921,-150.0,0.00016919,2]
[396215206,1764823842930,-500.0,0.00016919,2]
[396215207,1764823842943,-500.0,0.00016919,2]
[396215208,1764823842952,-150.0,0.00016919,2]
[396215209,1764823842962,-500.0,0.00016919,2]
[396215210,1764823842971,-671.582994,0.00016919,2]
[396215211,1764823842980,-2105.0,0.00016937,2]
[396215212,1764823842990,-500.0,0.00016973,2]
[396215213,1764823842999,-164.71510757,0.00016973,2]
[396215214,1764823843008,-500.0,0.00016973,2]
[396215215,1764823843017,-500.0,0.00016973,2]
[396215216,1764823843027,-500.0,0.00016973,2]
[396215217,1764823843036,-285.16846141,0.00016973,2]
[396215218,1764823843045,-500.0,0.00016973,2]
[396215219,1764823843054,-500.0,0.00016973,2]
[396215220,1764823843063,-649.32363297,0.00016973,2]
[396215221,1764823843074,-500.0,0.00016973,2]
[396215222,1764823843085,-518.5,0.00016986,2]
[396215223,1764823843094,-1518.0,0.00016986,2]
[396215224,1764823843104,-1512.0,0.00016986,2]
[396215225,1764823843115,-500.0,0.0001699,2]
[396215226,1764823843124,-8130.5118278,0.00016998,2]
[396215227,1764823843134,-6636.50700654,0.00016999,2]
[396215228,1764823843143,-161.39,0.00016999,2]
[396215229,1764823843154,-300.0,0.00016999,2]
[396215230,1764823843164,-300.0,0.00016999,2]
[396215231,1764823843175,-1704242.00038604,0.00017,2]
[396215232,1764823843184,-624167.79245914,0.00017,2]
[396215238,1764823846423,-43202.33812699,0.00017,2]
[396215239,1764823846499,-4186.112631,0.00017,2]
[396215243,1764823853481,-760000.0,0.00016099,2]
[396215244,1764823853491,-1555185.55781679,0.00017,2]
[396215245,1764823853501,-151.0,0.00017,2]
[396215246,1764823853510,-151.0,0.00017,2]
[396215247,1764823853521,-3608.8014445,0.00017,2]
[396215248,1764823853531,-1033.9395756,0.00017,2]
[396215249,1764823853540,-250.0,0.00017,2]
[396215250,1764823853550,-178.0099255,0.00017,2]
[396215251,1764823853559,-2000.0,0.00017,2]
[396215252,1764823853569,-152.846296,0.00017,2]
[396215253,1764823853579,-227641.4792557,0.00017,2]
[396215254,1764823853587,-4221.9471085,0.00017,2]
[396215255,1764823853597,-1251.0,0.00017,2]
[396215256,1764823853606,-1251.0,0.00017,2]
[396215257,1764823853615,-151.0,0.00017,2]
[396215258,1764823853624,-151.0,0.00017,2]
[396215259,1764823853634,-151.0,0.00017,2]
[396215260,1764823853644,-151.0,0.00017,2]
[396215261,1764823853655,-151.0,0.00017,2]
[396215262,1764823853665,-1251.0,0.00017,2]
[396215263,1764823853674,-1324.61941714,0.00017,2]
[396215264,1764823853683,-151.0,0.00017,2]
[396215265,1764823853692,-151.0,0.00017,2]
[396215266,1764823853702,-151.0,0.00017,2]
[396215267,1764823853711,-154.068128,0.00017,2]
[396215268,1764823853721,-151.0,0.00017,2]
[396215269,1764823853731,-151.0,0.00017,2]
[396215270,1764823853741,-537.6845,0.00017041,2]
[396215271,1764823853752,-166.66,0.00017051,2]
[396215272,1764823853762,-156.98308908,0.00017055,2]
[396215273,1764823853772,-500.0,0.00017055,2]
[396215274,1764823853781,-165.99057828,0.00017055,2]
[396215275,1764823853791,-2088.0,0.00017056,2]
[396215276,1764823853800,-500.0,0.00017056,2]
[396215277,1764823853810,-891.0,0.00017056,2]
[396215278,1764823853819,-150.0,0.00017056,2]
[396215279,1764823853829,-152.02518252,0.00017056,2]
[396215280,1764823853838,-500.0,0.00017056,2]
[396215281,1764823853847,-500.0,0.00017056,2]
[396215282,1764823853857,-150.86420125,0.00017056,2]
[396215283,1764823853868,-557.5788265,0.00017096,2]
[396215284,1764823853878,-1006.0,0.000171,2]
[396215285,1764823853888,-1250.64,0.00017111,2]
[396215286,1764823853897,-2088.0,0.00017125,2]
[396215287,1764823853907,-500.0,0.00017127,2]
[396215288,1764823853917,-578.20924308,0.00017151,2]
[396215289,1764823853927,-2088.0,0.00017165,2]
[396215290,1764823853937,-500.0,0.00017192,2]
[396215291,1764823853947,-500.0,0.00017193,2]
[396215292,1764823853957,-891.0,0.00017193,2]
[396215293,1764823853967,-265.01712022,0.00017193,2]
[396215294,1764823853976,-634.68642272,0.00017193,2]
[396215295,1764823853986,-366.23798276,0.00017193,2]
[396215296,1764823853996,-1000.0,0.000172,2]
[396215297,1764823854005,-381.6796646,0.00017206,2]
[396215299,1764823854016,-305.96646881,0.00017221,2]
[396215300,1764823854026,-222.0,0.00017221,2]
[396215301,1764823854045,-222.0,0.00017221,2]
[396215302,1764823854056,-222.0,0.00017221,2]
[396215303,1764823854066,-35891.31313987,0.00017222,2]
[396215304,1764823854080,-2105.0,0.00017238,2]
[396215305,1764823854090,-2105.0,0.0001725,2]
[396215306,1764823854100,-520.52785935,0.00017264,2]
[396215307,1764823854110,-222.0,0.0001727,2]
[396215308,1764823854121,-222.0,0.00017273,2]
[396215309,1764823854131,-2105.0,0.00017311,2]
[396215310,1764823854140,-423.56700146,0.00017329,2]
[396215311,1764823854151,-500.0,0.0001733,2]
[396215312,1764823854160,-891.0,0.0001733,2]
[396215313,1764823854170,-621.64,0.00017366,2]
[396215314,1764823854179,-151.0,0.00017376,2]
[396215315,1764823854189,-1950.0,0.00017376,2]
[396215316,1764823854199,-1250.64,0.00017385,2]
[396215317,1764823854210,-598.22205166,0.00017385,2]
[396215318,1764823854221,-151.0,0.00017385,2]
[396215319,1764823854231,-151.0,0.00017385,2]
[396215320,1764823854241,-201.38,0.00017436,2]
[396215321,1764823854251,-510.31429567,0.00017467,2]
[396215322,1764823854261,-891.0,0.00017467,2]
[396215323,1764823854272,-2105.0,0.00017473,2]
[396215324,1764823854281,-322.6107,0.00017518,2]
[396215325,1764823854292,-366.20942174,0.00017521,2]
[396215326,1764823854301,-1000.0,0.00017521,2]
[396215327,1764823854311,-1005.82554955,0.00017521,2]
[396215328,1764823854320,-1000.0,0.00017521,2]
[396215329,1764823854330,-2088.0,0.00017533,2]
[396215330,1764823854339,-2105.0,0.00017539,2]
[396215331,1764823854349,-2105.0,0.00017553,2]
[396215332,1764823854359,-891.0,0.00017604,2]
[396215333,1764823854369,-2105.0,0.00017634,2]
[396215334,1764823854379,-287.61899177,0.00017649,2]
[396215335,1764823854389,-311.1,0.00017649,2]
[396215336,1764823854399,-151.23726078,0.00017658,2]
[396215337,1764823854408,-628.35238982,0.00017658,2]
[396215338,1764823854418,-1250.64,0.00017659,2]
[396215339,1764823854427,-1047.0,0.00017687,2]
[396215340,1764823854436,-214.14468736,0.00017726,2]
[396215341,1764823854446,-166.66,0.00017726,2]
[396215342,1764823854456,-891.0,0.00017741,2]
[396215343,1764823854465,-151.0,0.0001775,2]
[396215344,1764823854474,-150.0,0.00017808,2]
[396215345,1764823854484,-2105.0,0.00017818,2]
[396215346,1764823854493,-891.0,0.00017878,2]
[396215347,1764823854502,-2088.0,0.00017889,2]
[396215348,1764823854511,-2105.0,0.00017893,2]
[396215349,1764823854521,-1312.63,0.00017898,2]
[396215350,1764823854531,-2088.0,0.00017923,2]
[396215351,1764823854540,-152.97594253,0.00017924,2]
[396215352,1764823854549,-1950.0,0.00017924,2]
[396215353,1764823854559,-1250.64,0.00017933,2]
[396215354,1764823854569,-151.0,0.00017933,2]
[396215355,1764823854578,-151.95598673,0.00017933,2]
[396215356,1764823854591,-150.0,0.00017945,2]
[396215357,1764823854600,-2088.0,0.00017963,2]
[396215358,1764823854610,-2215.58816544,0.00017969,2]
[396215359,1764823854620,-1000.0,0.00017996,2]
[396215360,1764823854629,-26818.78880212,0.00018,2]
[396215361,1764823854639,-887.27272926,0.00018,2]
[396215362,1764823854648,-1183.49453852,0.00018,2]
[396215363,1764823854658,-205.965314,0.00018,2]
[396215364,1764823854667,-151.0,0.00018,2]
[396215365,1764823854676,-151.0,0.00018,2]
[396215366,1764823854686,-151.0,0.00018,2]
[396215367,1764823854695,-151.0,0.00018,2]
[396215368,1764823854705,-891.0,0.00018015,2]
[396215369,1764823854714,-235.97447842,0.00018039,2]
[396215370,1764823854724,-1500.0,0.00018068,2]
[396215371,1764823854733,-1500.0,0.00018068,2]
[396215372,1764823854742,-150.0,0.00018082,2]
[396215373,1764823854751,-1000.0,0.00018082,2]
[396215374,1764823854761,-1769.01601649,0.000181,2]
[396215375,1764823854771,-2088.0,0.0001815,2]
[396215376,1764823854781,-891.0,0.00018152,2]
[396215377,1764823854790,-2105.0,0.00018164,2]
[396215378,1764823854799,-2105.0,0.00018205,2]
[396215379,1764823854809,-1250.64,0.00018207,2]
[396215380,1764823854818,-150.0,0.00018219,2]
[396215381,1764823854828,-891.0,0.00018289,2]
[396215382,1764823854838,-201.38,0.00018307,2]
[396215383,1764823854848,-150.0,0.00018356,2]
[396215384,1764823854857,-87966.54,0.00018356,2]
[396215385,1764823854867,-150.17113883,0.00018373,2]
[396215386,1764823854876,-166.66,0.00018402,2]
[396215387,1764823854886,-891.0,0.00018426,2]
[396215388,1764823854895,-1950.0,0.00018472,2]
[396215389,1764823854905,-1250.64,0.00018481,2]
[396215390,1764823854915,-153.24536797,0.00018481,2]
[396215391,1764823854925,-229.59889414,0.00018493,2]
[396215392,1764823854934,-891.0,0.00018563,2]
[396215393,1764823854944,-598.94895177,0.00018616,2]
[396215394,1764823854953,-1012.92196681,0.00018616,2]
[396215395,1764823854966,-891.0,0.000187,2]
[396215396,1764823854976,-621.64,0.00018736,2]
[396215397,1764823854986,-1250.64,0.00018755,2]
[396215398,1764823854996,-1000.0,0.0001876,2]
[396215399,1764823855005,-150.8,0.000188,2]
[396215400,1764823855015,-150.8,0.000188,2]
[396215401,1764823855024,-150.8,0.000188,2]
[396215402,1764823855033,-150.8,0.000188,2]
[396215403,1764823855043,-150.8,0.000188,2]
[396215404,1764823855052,-150.8,0.000188,2]
[396215405,1764823855061,-150.8,0.000188,2]
[396215406,1764823855071,-150.8,0.000188,2]
[396215407,1764823855084,-150.8,0.000188,2]
[396215408,1764823855093,-150.8,0.000188,2]
[396215409,1764823855103,-150.8,0.000188,2]
[396215410,1764823855112,-150.8,0.000188,2]
[396215411,1764823855122,-150.8,0.000188,2]
[396215412,1764823855132,-150.8,0.000188,2]
[396215413,1764823855143,-150.8,0.000188,2]
[396215414,1764823855153,-150.8,0.000188,2]
[396215415,1764823855163,-150.8,0.000188,2]
[396215416,1764823855172,-150.8,0.000188,2]
[396215417,1764823855182,-150.8,0.000188,2]
[396215418,1764823855191,-150.8,0.000188,2]
[396215419,1764823855201,-150.8,0.000188,2]
[396215420,1764823855211,-150.8,0.000188,2]
[396215421,1764823855220,-150.8,0.000188,2]
[396215422,1764823855229,-150.8,0.000188,2]
[396215423,1764823855239,-150.8,0.000188,2]
[396215424,1764823855248,-150.8,0.000188,2]
[396215425,1764823855258,-150.8,0.000188,2]
[396215426,1764823855269,-150.8,0.000188,2]
[396215427,1764823855279,-150.8,0.000188,2]
[396215428,1764823855288,-150.8,0.000188,2]
[396215429,1764823855298,-150.8,0.000188,2]
[396215430,1764823855307,-150.8,0.000188,2]
[396215431,1764823855317,-150.8,0.000188,2]
[396215432,1764823855326,-150.8,0.000188,2]
[396215433,1764823855335,-150.8,0.000188,2]
[396215434,1764823855345,-150.8,0.000188,2]
[396215435,1764823855354,-150.8,0.000188,2]
[396215436,1764823855364,-150.8,0.000188,2]
[396215437,1764823855374,-150.8,0.000188,2]
[396215438,1764823855384,-150.8,0.000188,2]
[396215439,1764823855393,-891.0,0.00018837,2]
[396215440,1764823855403,-334.5472959,0.00018887,2]
[396215441,1764823855412,-891.0,0.00018974,2]
[396215442,1764823855422,-5139.59421298,0.00019,2]
[396215443,1764823855431,-811.90236964,0.00019,2]
[396215444,1764823855440,-6456.02156691,0.00019,2]
[396215445,1764823855450,-300.0,0.00019,2]
[396215446,1764823855459,-286.41813863,0.00019,2]
[396215447,1764823855469,-298.26089446,0.00019018,2]
[396215448,1764823855478,-322.6107,0.00019018,2]
[396215449,1764823855487,-1950.0,0.0001902,2]
[396215450,1764823855496,-150.8,0.00019025,2]
[396215451,1764823855505,-152.94900919,0.00019028,2]
[396215452,1764823855515,-1250.64,0.00019029,2]
[396215453,1764823855524,-63501.5107277,0.00019035,2]
[396215454,1764823855534,-761.410228,0.00019041,2]
[396215455,1764823855543,-166.66,0.00019078,2]
[396215456,1764823855552,-891.0,0.00019111,2]
[396215457,1764823855562,-250.0,0.00019116,2]
[396215458,1764823855571,-942.0437344,0.00019157,2]
[396215459,1764823855580,-1814.1624062,0.00019164,2]
[396215460,1764823855590,-50793.6797227,0.00019166,2]
[396215461,1764823855599,-150.8,0.00019168,2]
[396215462,1764823855609,-1844.31955343,0.00019178,2]
[396215463,1764823855618,-3008.5532171,0.00019178,2]
[396215464,1764823855627,-20032.75,0.00019178,2]
[396215465,1764823855636,-151.0,0.00019178,2]
[396215466,1764823855645,-236.652457,0.00019178,2]
[396215467,1764823855655,-250.318239,0.00019178,2]
[396215468,1764823855664,-250.318239,0.00019178,2]
[396215469,1764823855673,-250.318239,0.00019178,2]
[396215470,1764823855683,-250.318239,0.00019178,2]
[396215471,1764823855692,-250.318239,0.00019178,2]
[396215472,1764823855702,-250.318239,0.00019178,2]
[396215473,1764823855711,-250.318239,0.00019178,2]
[396215474,1764823855721,-250.318239,0.00019178,2]
[396215475,1764823855730,-240.236779,0.00019178,2]
[396215476,1764823855739,-240.236779,0.00019178,2]
[396215477,1764823855749,-240.236779,0.00019178,2]
[396215478,1764823855758,-240.236779,0.00019178,2]
[396215479,1764823855767,-240.236779,0.00019178,2]
[396215480,1764823855779,-240.236779,0.00019178,2]
[396215481,1764823855788,-240.236779,0.00019178,2]
[396215482,1764823855797,-240.236779,0.00019178,2]
[396215483,1764823855806,-151.0,0.00019178,2]
[396215484,1764823855815,-182.053965,0.00019178,2]
[396215485,1764823855825,-151.0,0.00019178,2]
[396215486,1764823855834,-189.6464512,0.00019178,2]
[396215487,1764823855843,-166.909594,0.00019178,2]
[396215488,1764823855853,-227.453414,0.00019178,2]
[396215489,1764823855862,-151.0,0.00019178,2]
[396215490,1764823855872,-297.384055,0.00019178,2]
[396215491,1764823855881,-151.0,0.00019178,2]
[396215492,1764823855891,-151.0,0.00019178,2]
[396215493,1764823855900,-151.0,0.00019178,2]
[396215494,1764823855910,-151.0,0.00019178,2]
[396215495,1764823855919,-151.0,0.00019178,2]
[396215496,1764823855929,-151.0,0.00019178,2]
[396215497,1764823855938,-151.0,0.00019178,2]
[396215498,1764823855948,-151.0,0.00019178,2]
[396215499,1764823855956,-151.0,0.00019178,2]
[396215500,1764823855966,-151.0,0.00019178,2]
[396215501,1764823855975,-151.0,0.00019178,2]
[396215502,1764823855984,-151.0,0.00019178,2]
[396215503,1764823855995,-151.0,0.00019178,2]
[396215504,1764823856004,-151.0,0.00019178,2]
[396215505,1764823856014,-151.0,0.00019178,2]
[396215506,1764823856023,-151.0,0.00019178,2]
[396215507,1764823856033,-201.38,0.00019179,2]
[396215508,1764823856043,-891.0,0.00019248,2]
[396215509,1764823856052,-1250.66030323,0.00019303,2]
[396215510,1764823856062,-891.0,0.00019385,2]
[396215511,1764823856072,-1000.0,0.00019438,2]
[396215512,1764823856082,-14169.1022583,0.00019512,2]
[396215513,1764823856091,-169.8935861,0.0001952,2]
[396215514,1764823856101,-891.0,0.00019522,2]
[396215515,1764823856110,-1950.0,0.00019568,2]
[396215516,1764823856121,-166.68,0.00019597,2]
[396215517,1764823856131,-210.1983693,0.00019638,2]
[396215518,1764823856140,-404.7943482,0.00019647,2]
[396215519,1764823856152,-179.6716442,0.00019649,2]
[396215520,1764823856161,-11333.601891,0.00019649,2]
[396215521,1764823856171,-891.0,0.00019659,2]
[396215522,1764823856180,-891.0,0.00019796,2]
[396215523,1764823856190,-1312.63,0.00019886,2]
[396215524,1764823856199,-206.242111,0.000199,2]
[396215525,1764823856208,-891.0,0.00019933,2]
[396215526,1764823856218,-151.29932748,0.00019973,2]
[396215527,1764823856227,-1000.0,0.00019996,2]
[396215528,1764823856236,-10862.67530809,0.0002,2]
[396215529,1764823856246,-3950.0,0.0002,2]
[396215530,1764823856255,-73607.70844627,0.0002,2]
[396215531,1764823856265,-7251.90251763,0.0002,2]
[396215532,1764823856274,-1287.78072263,0.0002,2]
[396215533,1764823856284,-1039.45352697,0.0002,2]
[396215534,1764823856293,-2848.52996633,0.0002,2]
[396215535,1764823856302,-414.54289206,0.0002,2]
[396215536,1764823856311,-12857.70282579,0.0002,2]
[396215537,1764823856321,-1644.23,0.0002,2]
[396215538,1764823856331,-250.0,0.0002,2]